bitfinex/quotes_ETHUSD_20220120
["timestamp","ask_amount","ask_price","bid_price","bid_amount"]
[1642700492938,2.62272334,3240.0,3239.9,0.00139753]
[1642700493237,3.1279,3240.1,3239.9,0.00139753]
[1642700493740,2.62272534,3240.0,3239.9,0.00139753]
[1642700494539,3.1279,3240.1,3239.9,0.00139753]
[1642700494889,2.62269134,3240.0,3239.9,0.00139753]
[1642700495978,3.1279,3240.1,3239.9,0.00139753]
[1642700497078,3.1279,3240.1,3240.0,3.494]
[1642700497278,5.75052831,3240.1,3240.0,4.494]
[1642700497484,5.75052831,3240.1,3240.0,4.49482911]
[1642700497683,3.1279,3240.1,3240.0,4.49482911]
[1642700498082,3.1279,3240.1,3240.0,1.44482911]
[1642700498384,5.75058929,3240.1,3240.0,0.44482911]
[1642700498632,3.1279,3240.1,3240.0,0.44482911]
[1642700499028,3.1279,3240.1,3240.0,1.21638911]
[1642700499229,5.75054501,3240.1,3240.0,1.21638911]
[1642700499429,5.75054501,3240.1,3240.0,1.51638911]
[1642700499430,3.1279,3240.1,3240.0,1.51638911]
[1642700499630,3.1279,3240.1,3240.0,2.51638911]
[1642700499932,3.1279,3240.1,3240.0,2.21638911]
[1642700500134,3.1279,3240.1,3240.0,1.21638911]
[1642700500731,3.1279,3240.1,3240.0,3.56817305]
[1642700501232,5.75060174,3240.1,3240.0,2.21638911]
[1642700501631,5.75060174,3240.1,3240.0,1.21638911]
[1642700503288,3.1279,3240.1,3240.0,1.21638911]
[1642700503887,3.1279,3240.1,3240.0,1.51638911]
[1642700504187,5.75051252,3240.1,3240.0,5.56638911]
[1642700504586,5.75051252,3240.1,3240.0,6.56638911]
[1642700505290,3.1279,3240.1,3240.0,6.56638911]
[1642700505487,5.75053457,3240.1,3240.0,6.56638911]
[1642700505686,5.75053457,3240.1,3240.0,2.51638911]
[1642700505887,5.75053457,3240.1,3240.0,1.74482911]
[1642700506127,5.75053457,3240.1,3240.0,0.74482911]
[1642700506927,5.75053457,3240.1,3240.0,3.49482911]
[1642700507128,5.75053457,3240.1,3240.0,4.49482911]
[1642700507531,5.70053457,3240.1,3240.0,1.74482911]
[1642700507936,5.70053457,3240.1,3240.0,0.44482911]
[1642700509133,3.0779,3240.1,3240.0,0.44482911]
[1642700509431,5.70065586,3240.1,3240.0,1.21639911]
[1642700509632,5.7005968,3240.1,3240.0,1.21639911]
[1642700513493,5.70053676,3240.1,3240.0,1.21639911]
[1642700515537,5.70053676,3240.1,3240.0,1.51639911]
[1642700516138,5.70056497,3240.1,3240.0,1.51639911]
[1642700516338,5.70056497,3240.1,3240.0,1.21639911]
[1642700521434,5.70056497,3240.1,3240.0,0.44482911]
[1642700527482,5.70056497,3240.1,3240.0,0.444]
[1642700530637,5.70056497,3240.1,3240.0,6.644]
[1642700530838,5.70056497,3240.1,3240.0,6.70653123]
[1642700531039,5.70056497,3240.1,3240.0,7.70653123]
[1642700531342,5.70056497,3240.1,3240.0,7.644]
[1642700531536,5.56567422,3240.1,3240.0,7.644]
[1642700531737,5.56567422,3240.1,3240.0,7.70653123]
[1642700531937,5.56567422,3240.1,3240.0,1.50653123]
[1642700532139,5.56567422,3240.1,3240.0,1.444]
[1642700532588,5.56567422,3240.1,3240.0,5.244]
[1642700533688,5.56567422,3240.1,3240.0,7.70605051]
[1642700533892,2.68338846,3240.9,3240.1,6.2]
[1642700533893,1.1259,3240.9,3240.1,6.2]
[1642700534089,1.1259,3240.9,3240.2,5.03114504]
[1642700534289,0.00371828,3240.8,3240.2,5.20967627]
[1642700534590,0.00314986,3240.7,3240.4,1.54282]
[1642700534790,0.00314986,3240.7,3240.6,6.33752151]
[1642700534991,1.03781222,3241.1,3240.6,6.78152151]
[1642700535190,1.03781222,3241.1,3240.6,2.88152151]
[1642700535388,1.03781222,3241.1,3240.7,1.0]
[1642700535389,0.00485513,3241.0,3240.7,1.0]
[1642700535590,0.00485513,3241.0,3240.8,0.444]
[1642700535790,1.03781222,3241.1,3240.8,0.444]
[1642700535791,0.0042867,3240.9,3240.8,0.444]
[1642700536437,0.00338902,3240.9,3240.8,0.444]
[1642700537838,3.10338902,3240.9,3240.8,0.444]
[1642700538840,3.10338902,3240.9,3240.8,1.444]
[1642700540491,3.10338902,3240.9,3240.8,4.18324168]
[1642700540694,3.10338902,3240.9,3240.8,6.144]
[1642700540894,1.03781222,3241.1,3240.9,5.45]
[1642700541097,1.03781222,3241.1,3241.0,1.444]
[1642700541298,1.03781222,3241.1,3241.0,2.21531]
[1642700541499,1.03894907,3241.1,3241.0,4.61531]
[1642700541697,1.03894907,3241.1,3241.0,5.67779251]
[1642700541894,1.03894907,3241.1,3241.0,5.61531]
[1642700543096,1.03894907,3241.1,3241.0,8.03544645]
[1642700543297,0.00191909,3241.7,3241.2,1.54241]
[1642700543497,2.70538846,3241.9,3241.3,0.444]
[1642700543498,0.00191909,3241.8,3241.3,0.444]
[1642700543733,0.00284212,3241.6,3241.3,0.444]
[1642700544033,0.00227369,3241.5,3241.3,0.444]
[1642700544433,0.00170527,3241.4,3241.3,2.2957137]
[1642700544635,0.00170527,3241.4,3241.3,5.9457137]
[1642700544933,1.55940755,3242.1,3241.4,6.05]
[1642700545134,1.55940755,3242.1,3241.5,4.34444213]
[1642700545333,1.55940755,3242.1,3241.5,4.64444213]
[1642700545537,1.55940755,3242.1,3241.6,0.00170527]
[1642700545538,0.00191909,3242.1,3241.6,0.00170527]
[1642700545733,1.55748846,3242.2,3241.7,1.83924141]
[1642700545734,1.55940755,3242.2,3241.7,1.83924141]
[1642700545934,0.00191909,3242.2,3241.7,1.83924141]
[1642700546134,0.00113684,3242.1,3241.7,2.13924141]
[1642700546636,0.00113684,3242.1,3241.7,3.13924141]
[1642700546839,0.00113684,3242.1,3241.7,2.13924141]
[1642700547035,0.00113684,3242.1,3241.8,1.0]
[1642700547235,0.00113684,3242.1,3241.7,2.81124141]
[1642700547488,0.00113684,3242.1,3242.0,3.97103]
[1642700547689,3.10113684,3242.1,3242.0,2.51503]
[1642700548089,3.10113684,3242.1,3242.0,1.21503]
[1642700548289,3.10113684,3242.1,3242.0,0.444]
[1642700552334,2.93313087,3242.1,3242.0,0.444]
[1642700553941,5.55522379,3242.1,3242.0,0.444]
[1642700554886,5.55522379,3242.1,3241.6,0.00170527]
[1642700555081,2.62401201,3242.0,3241.6,0.00170527]
[1642700555280,2.62401201,3242.0,3241.4,0.44797896]
[1642700555479,2.62401201,3242.0,3241.5,0.00341054]
[1642700559531,1.37563514,3241.8,3241.5,0.00341054]
[1642700559741,2.62209292,3241.7,3241.5,0.00341054]
[1642700559933,1.18347569,3241.6,3241.5,0.00341054]
[1642700560133,1.18347569,3241.6,3241.3,0.00454738]
[1642700560134,6.62209292,3241.6,3241.3,0.00454738]
[1642700560434,2.62209292,3241.5,3240.9,0.00682108]
[1642700561035,2.62209292,3241.5,3240.8,0.0073895]
[1642700563186,3.72716688,3241.5,3240.8,0.0073895]
[1642700563387,2.62209292,3241.4,3240.8,0.0073895]
[1642700563789,2.62209292,3241.3,3240.8,0.0073895]
[1642700563987,0.3,3241.6,3240.8,0.0073895]
[1642700563988,2.62209292,3241.2,3240.8,0.0073895]
[1642700564188,2.62209292,3241.1,3240.8,0.0073895]
[1642700564388,0.3,3241.6,3240.8,0.0073895]
[1642700564588,2.62242418,3241.5,3240.8,0.0073895]
[1642700564789,3.83702033,3241.4,3240.8,0.0073895]
[1642700564988,2.62242418,3241.3,3240.8,0.0073895]
[1642700567440,2.62242418,3241.6,3240.8,0.0073895]
[1642700567838,2.92242418,3241.6,3240.8,0.0073895]
[1642700568040,2.62242418,3241.5,3240.8,0.0073895]
[1642700568240,4.09910863,3241.5,3240.8,0.0073895]
[1642700568440,2.62242418,3241.4,3240.8,1.0073895]
[1642700568640,2.62242418,3241.4,3240.8,0.0073895]
[1642700568840,2.62242418,3241.4,3240.9,0.00682108]
[1642700569040,2.62242418,3241.4,3240.8,1.0073895]
[1642700569241,2.62242418,3241.4,3240.9,0.00682108]
[1642700569987,2.62242418,3241.4,3240.8,0.0073895]
[1642700574834,2.62242418,3241.4,3240.7,0.96983327]
[1642700575032,2.62242418,3241.4,3240.6,1.51545]
[1642700575242,2.62242418,3241.4,3239.6,3.85096804]
[1642700575243,6.2,3241.2,3239.6,3.85096804]
[1642700575442,6.2,3241.2,3238.2,1.21330916]
[1642700575443,0.01289995,3239.8,3239.0,0.10218914]
[1642700575648,0.01289995,3239.8,3238.1,0.05]
[1642700575649,0.01292803,3239.1,3238.1,0.05]
[1642700575835,0.01292803,3239.1,3238.2,0.05]
[1642700575836,0.0122552,3238.4,3238.2,0.05]
[1642700576036,0.0122552,3238.4,3237.2,1.4079868]
[1642700576037,8.98938874,3238.3,3237.2,1.4079868]
[1642700576237,8.98938874,3238.3,3237.3,1.35576827]
[1642700576238,4.04160446,3238.2,3237.3,1.35576827]
[1642700576438,5.07013811,3238.1,3237.3,1.20967456]
[1642700576634,5.07013811,3238.1,3237.3,1.22802956]
[1642700576635,2.62463195,3238.0,3237.3,1.22802956]
[1642700576833,2.44550616,3237.9,3237.3,1.22802956]
[1642700577036,0.444,3237.8,3237.3,1.22802956]
[1642700577486,2.44550616,3237.7,3237.3,1.22802956]
[1642700577691,0.444,3237.6,3237.3,1.22802956]
[1642700578088,0.744,3237.6,3237.3,1.22802956]
[1642700578487,2.44550616,3237.5,3237.3,1.22802956]
[1642700578689,0.3,3237.6,3237.3,1.22802956]
[1642700579084,0.744,3237.7,3237.3,1.22802956]
[1642700580286,0.444,3237.7,3237.3,1.22802956]
[1642700580492,2.45789458,3238.1,3237.3,1.22802956]
[1642700580493,0.444,3238.1,3237.3,1.22802956]
[1642700580886,2.69541443,3238.1,3237.3,1.22802956]
[1642700581154,0.444,3238.1,3237.3,1.22802956]
[1642700581354,0.444,3238.1,3237.6,1.16446408]
[1642700581853,0.444,3238.1,3237.7,0.01762113]
[1642700582054,2.22592304,3238.0,3237.8,1.23981114]
[1642700582254,0.444,3238.1,3237.8,1.23981114]
[1642700582457,6.70766717,3238.0,3237.9,0.01648428]
[1642700583160,7.00766717,3238.0,3237.9,0.01648428]
[1642700584259,8.47099424,3238.0,3237.9,0.01648428]
[1642700584898,3.67099424,3238.0,3237.9,0.01648428]
[1642700585093,0.3,3238.0,3237.9,0.01648428]
[1642700585293,6.71496236,3238.0,3237.9,0.01648428]
[1642700585594,7.01496236,3238.0,3237.9,0.01648428]
[1642700585993,8.33769909,3238.0,3237.9,0.01648428]
[1642700587598,2.61496236,3238.0,3237.9,0.01648428]
[1642700587997,5.26496236,3238.0,3237.9,0.01648428]
[1642700588639,6.70884208,3238.0,3237.9,0.01648428]
[1642700588841,9.80884208,3238.0,3237.9,0.01648428]
[1642700589743,3.4,3238.0,3237.9,0.01648428]
[1642700589943,5.67749454,3238.0,3237.9,0.01648428]
[1642700590745,5.67749454,3238.0,3237.8,1.23981114]
[1642700590746,4.6,3237.9,3237.8,1.21693966]
[1642700590947,5.67749454,3238.0,3237.8,1.21693966]
[1642700590948,3.4,3238.0,3237.8,1.21693966]
[1642700591544,2.26043962,3237.9,3237.8,1.21693966]
[1642700592397,2.24392428,3237.9,3237.8,1.21693966]
[1642700592590,3.4,3238.0,3237.8,1.21693966]
[1642700593291,2.23333179,3237.9,3237.8,1.21693966]
[1642700594994,2.29627171,3237.9,3237.8,1.21693966]
[1642700595394,2.29627171,3237.9,3237.3,0.02052021]
[1642700595795,2.29627171,3237.9,3237.4,0.00284212]
[1642700596644,2.29627171,3237.9,3237.4,0.02119712]
[1642700597047,2.29627171,3237.9,3237.5,0.00227369]
[1642700597447,2.29627171,3237.9,3237.6,1.3146644]
[1642700597648,2.29627171,3237.9,3237.7,0.00216521]
[1642700597849,3.4,3238.0,3237.7,0.00330206]
[1642700598852,3.1,3238.0,3237.7,2.39821324]
[1642700599053,3.1,3238.0,3237.7,0.00330206]
[1642700600507,3.4,3238.0,3237.7,0.00330206]
[1642700600908,3.1,3238.0,3237.7,0.00113685]
[1642700601315,3.1,3238.0,3237.5,0.00227369]
[1642700601711,3.4,3238.0,3237.5,0.00227369]
[1642700602112,1.18856009,3237.8,3237.5,0.00227369]
[1642700602412,1.93256009,3237.8,3237.5,0.00227369]
[1642700603208,0.744,3237.8,3237.5,0.00227369]
[1642700605047,0.744,3237.8,3237.5,0.0044389]
[1642700605349,0.744,3237.8,3237.6,0.00170527]
[1642700605746,0.00016675,3237.5,3237.4,0.018355]
[1642700606149,0.00016675,3237.5,3237.4,0.01949185]
[1642700612147,0.30016675,3237.5,3237.4,0.01949185]
[1642700613948,0.00016675,3237.5,3237.4,0.01949185]
[1642700621749,0.00016675,3237.5,3237.4,1.42003738]
[1642700622907,2.27301937,3237.5,3237.4,1.42003738]
[1642700623108,2.57301937,3237.5,3237.4,1.42003738]
[1642700623611,2.92519186,3237.5,3237.4,1.42003738]
[1642700624111,4.45540044,3237.5,3237.4,1.42003738]
[1642700624310,2.92519186,3237.5,3237.4,1.42003738]
[1642700624511,1.82986373,3237.5,3237.4,1.42003738]
[1642700624715,4.45488884,3237.5,3237.4,1.42003738]
[1642700625313,2.62519186,3237.5,3237.4,1.42003738]
[1642700625914,0.00016675,3237.5,3237.4,1.42003738]
[1642700627049,2.92519186,3237.5,3237.4,1.42003738]
[1642700629652,2.62519186,3237.5,3237.4,1.42003738]
[1642700629896,0.00016675,3237.5,3237.4,1.42003738]
[1642700630093,0.00016675,3237.5,3237.4,0.01949185]
[1642700630293,0.30016675,3237.5,3237.4,0.01949185]
[1642700630493,2.92519186,3237.5,3237.4,0.01949185]
[1642700631595,2.62437955,3237.5,3237.4,0.01949185]
[1642700631796,2.42691262,3238.1,3237.4,0.01949185]
[1642700631797,1.52969698,3237.9,3237.4,0.01949185]
[1642700631997,1.82969698,3237.9,3237.4,0.01949185]
[1642700632198,1.83140225,3237.9,3237.4,0.01949185]
[1642700632403,0.30170527,3237.9,3237.4,0.01949185]
[1642700632601,0.00170527,3237.9,3237.4,0.01949185]
[1642700632801,1.53140225,3237.9,3237.4,0.01949185]
[1642700633302,0.00170527,3237.9,3237.4,0.01949185]
[1642700633948,7.08272684,3238.0,3237.4,0.01949185]
[1642700634150,7.08272684,3238.0,3237.5,0.00227369]
[1642700634953,1.52969698,3237.9,3237.5,0.00227369]
[1642700635250,7.08272684,3238.0,3237.5,0.018355]
[1642700635550,1.52969698,3237.9,3237.6,0.00170527]
[1642700635950,3.73250603,3237.9,3237.6,0.00170527]
[1642700636250,3.35958633,3238.0,3237.6,0.00170527]
[1642700636251,4.88928331,3238.0,3237.6,0.00170527]
[1642700636852,7.08903535,3238.0,3237.6,0.00170527]
[1642700637504,4.88928331,3238.0,3237.6,0.00170527]
[1642700638299,3.35958633,3238.0,3237.6,0.00170527]
[1642700638502,4.62969698,3238.0,3237.6,0.00170527]
[1642700638702,3.1,3238.0,3237.6,0.00170527]
[1642700639001,4.62969698,3238.0,3237.6,0.00170527]
[1642700639201,3.1,3238.0,3237.6,0.00170527]
[1642700639403,4.62969698,3238.0,3237.6,0.00170527]
[1642700639601,4.62969698,3238.0,3237.9,1.1845367]
[1642700640203,3.1,3238.0,3237.9,1.1845367]
[1642700640604,4.63449825,3238.0,3237.9,1.1845367]
[1642700641359,4.9360872,3238.0,3237.9,1.1845367]
[1642700641559,3.4,3238.0,3237.9,1.1845367]
[1642700642359,4.63604222,3238.0,3237.9,1.1845367]
[1642700643160,3.1,3238.0,3237.9,1.1845367]
[1642700643760,4.63548165,3238.0,3237.9,1.1845367]
[1642700644162,3.1,3238.0,3237.9,1.1845367]
[1642700644362,5.4019864,3238.0,3237.9,1.1845367]
[1642700644563,3.1,3238.0,3237.9,1.1845367]
[1642700644996,7.63459301,3238.0,3237.9,1.1845367]
[1642700645203,7.63459301,3238.0,3237.6,0.00170527]
[1642700645204,2.81479319,3237.8,3237.6,0.00170527]
[1642700645401,2.30778733,3237.7,3237.6,0.00170527]
[1642700646600,3.84261785,3237.7,3237.6,1.33034524]
[1642700647408,1.53483052,3237.7,3237.6,1.33034524]
[1642700647712,3.80129158,3237.7,3237.6,1.33034524]
[1642700648108,3.80127089,3237.7,3237.6,1.33034524]
[1642700648308,2.26645967,3237.7,3237.6,1.33034524]
[1642700648509,3.80148276,3237.7,3237.6,1.33034524]
[1642700649159,3.75111647,3237.7,3237.6,0.00170527]
[1642700649962,5.28597565,3237.7,3237.6,0.00170527]
[1642700650161,3.75111647,3237.7,3237.6,0.00170527]
[1642700650368,2.26645967,3237.7,3237.6,1.54497627]
[1642700650566,5.41604973,3237.8,3237.6,1.54497627]
[1642700650769,2.21666397,3237.7,3237.6,1.54497627]
[1642700650967,1.53547807,3237.7,3237.6,1.543271]
[1642700651467,2.20165094,3237.7,3237.6,1.543271]
[1642700651667,6.36154243,3237.7,3237.6,1.543271]
[1642700653200,4.8267619,3237.7,3237.6,1.543271]
[1642700653400,2.62511096,3237.7,3237.6,1.543271]
[1642700653601,4.83415753,3237.7,3237.6,1.543271]
[1642700653801,4.82183171,3237.7,3237.6,1.543271]
[1642700654002,4.81391485,3237.7,3237.6,1.543271]
[1642700654201,2.62511096,3237.7,3237.6,1.54230793]
[1642700655302,2.62511096,3237.7,3237.6,1.56066293]
[1642700655506,4.80759425,3237.7,3237.6,1.56066293]
[1642700656003,7.10885079,3237.7,3237.6,1.56066293]
[1642700656246,4.80759425,3237.7,3237.6,1.56066293]
[1642700656850,2.62511096,3237.7,3237.6,1.56066293]
[1642700657250,4.15956792,3237.7,3237.6,1.56066293]
[1642700657450,6.38854815,3237.7,3237.6,1.56066293]
[1642700657853,2.62511096,3237.7,3237.6,1.56066293]
[1642700658155,6.38907653,3237.7,3237.6,1.56066293]
[1642700658551,6.23996533,3237.7,3237.6,1.56066293]
[1642700658951,7.7740582,3237.7,3237.6,1.56066293]
[1642700659153,7.77374401,3237.7,3237.6,1.56066293]
[1642700659352,6.23996533,3237.7,3237.6,1.56066293]
[1642700660000,7.77414164,3237.7,3237.6,1.56066293]
[1642700660606,7.77414164,3237.7,3237.6,0.018355]
[1642700660808,6.23996533,3237.7,3237.6,0.018355]
[1642700662609,4.8214491,3237.7,3237.6,0.018355]
[1642700662810,4.16109148,3237.7,3237.6,0.018355]
[1642700664045,2.62511096,3237.7,3237.6,0.018355]
[1642700664548,4.8718598,3237.7,3237.6,0.018355]
[1642700664750,4.15987119,3237.7,3237.6,0.018355]
[1642700664949,4.15987119,3237.7,3237.4,1.40028844]
[1642700664950,2.62511096,3237.7,3237.4,1.40028844]
[1642700665148,1.53412192,3237.6,3237.4,1.41130144]
[1642700665349,1.53412192,3237.6,3237.5,0.00227369]
[1642700666148,4.15923288,3237.6,3237.5,0.00227369]
[1642700666552,5.16238241,3237.6,3237.5,0.00227369]
[1642700667397,2.92511096,3237.6,3237.5,0.00227369]
[1642700667802,5.11504037,3237.6,3237.5,0.00227369]
[1642700668003,7.41629691,3237.6,3237.5,0.00227369]
[1642700669005,7.41629691,3237.6,3237.4,0.01706887]
[1642700669006,4.75,3237.5,3237.4,0.01706887]
[1642700669205,12.0832793,3237.5,3237.4,0.01706887]
[1642700669410,9.78631135,3237.5,3237.4,0.01706887]
[1642700669904,12.0832793,3237.5,3237.4,0.01706887]
[1642700670104,11.3184289,3237.5,3237.4,0.01706887]
[1642700670308,9.78631135,3237.5,3237.4,0.01706887]
[1642700670904,5.19037135,3237.5,3237.4,0.01706887]
[1642700671161,7.7873393,3237.5,3237.4,0.01706887]
[1642700672353,7.6332793,3237.5,3237.4,0.01706887]
[1642700672853,5.33631135,3237.5,3237.4,0.01706887]
[1642700673054,2.92511096,3237.5,3237.4,0.01706887]
[1642700673353,7.41337722,3237.5,3237.4,0.01706887]
[1642700673759,5.11640927,3237.5,3237.4,0.01706887]
[1642700674757,4.81640927,3237.5,3237.4,0.01706887]
[1642700674999,7.11337722,3237.5,3237.4,0.01706887]
[1642700675204,4.81640927,3237.5,3237.4,0.01706887]
[1642700676409,4.97046927,3237.5,3237.4,0.01706887]
[1642700676806,4.81640927,3237.5,3237.4,0.01706887]
[1642700677007,2.62511096,3237.5,3237.4,0.01706887]
[1642700677806,2.77917096,3237.5,3237.4,0.01706887]
[1642700678207,2.62511096,3237.5,3237.4,0.01706887]
[1642700680078,2.62511096,3237.7,3237.4,0.01706887]
[1642700680262,2.62511096,3237.6,3237.4,0.01706887]
[1642700680561,2.62511096,3237.5,3237.4,0.01706887]
[1642700680761,0.00113684,3237.7,3237.4,0.01706887]
[1642700680762,2.6262478,3237.7,3237.4,0.01706887]
[1642700680962,1.31264796,3237.6,3237.4,0.01706887]
[1642700681163,2.62511096,3237.5,3237.4,0.01706887]
[1642700685309,2.62511096,3237.5,3237.4,0.01761824]
[1642700686354,2.62511096,3237.5,3237.2,2.04785504]
[1642700686556,2.62511096,3237.5,3237.2,2.05281217]
[1642700686760,2.62511096,3237.5,3237.3,0.00113685]
[1642700690297,2.62511096,3237.5,3237.2,2.04878043]
[1642700691499,2.62511096,3237.5,3237.2,1.31294393]
[1642700691701,1.3551412,3237.3,3237.2,1.31294393]
[1642700692004,6.32368723,3237.3,3237.2,1.31294393]
[1642700692400,3.98025216,3237.3,3237.2,1.31294393]
[1642700695654,6.67516334,3237.3,3237.2,1.31294393]
[1642700695856,4.43431216,3237.3,3237.2,1.31294393]
[1642700696656,5.73431216,3237.3,3237.2,1.31294393]
[1642700697258,4.43431216,3237.3,3237.2,1.31294393]
[1642700697504,4.73431216,3237.3,3237.2,1.31294393]
[1642700697709,4.73431216,3237.3,3236.5,0.00216527]
[1642700697710,18.03,3237.1,3236.5,0.00216527]
[1642700697907,18.03,3237.1,3235.3,2.54480077]
[1642700697908,5.8,3236.5,3235.3,2.54480077]
[1642700698105,2.62511096,3236.4,3236.1,0.00433111]
[1642700698305,2.62511096,3236.4,3235.4,0.00433111]
[1642700698505,0.3,3236.4,3236.2,0.00625266]
[1642700698708,4.04175805,3236.3,3236.2,0.00625266]
[1642700699106,4.04175805,3236.3,3235.6,0.01399431]
[1642700699307,2.62608786,3236.2,3235.3,2.50822666]
[1642700699608,0.0022737,3236.1,3235.5,0.00433167]
[1642700699809,0.7751511,3236.1,3235.4,0.00170527]
[1642700700006,2.62779313,3236.0,3235.4,0.00170527]
[1642700700406,1.25498069,3235.5,3235.4,0.00170527]
[1642700700607,0.00113685,3235.9,3235.3,2.45993193]
[1642700701154,0.0022737,3235.8,3235.3,2.58362393]
[1642700701351,0.0022737,3235.8,3235.3,2.45993193]
[1642700701548,0.00170527,3235.7,3235.4,1.39036263]
[1642700701751,0.00170527,3235.7,3235.5,2.39491118]
[1642700701951,0.56563685,3236.1,3235.6,6.2]
[1642700702150,0.56563685,3236.1,3235.7,1.0]
[1642700702353,0.00170527,3235.9,3235.7,1.0]
[1642700702553,0.00170527,3235.9,3235.6,6.2]
[1642700702755,0.00170527,3235.9,3235.5,2.39491118]
[1642700702756,0.00113685,3235.8,3235.7,1.4281976]
[1642700703153,0.00113685,3235.8,3235.7,2.9732876]
[1642700703353,0.00113685,3235.8,3235.7,3.03567435]
[1642700703555,0.00113685,3235.8,3235.7,4.03567435]
[1642700703755,0.00113685,3235.8,3235.7,9.95815435]
[1642700704159,0.00113685,3235.8,3235.7,3.80815435]
[1642700704360,0.00113685,3235.8,3235.7,7.23412797]
[1642700705202,0.00113685,3235.8,3235.7,4.03567435]
[1642700705601,0.00113685,3235.8,3235.7,3.9732876]
[1642700706204,0.00113685,3235.8,3235.7,6.28510572]
[1642700706607,0.00113685,3235.8,3235.7,3.9732876]
[1642700707704,0.00113685,3235.8,3235.7,8.67233082]
[1642700707905,0.00113685,3235.8,3235.7,3.9732876]
[1642700708505,0.00113685,3235.8,3235.7,2.9732876]
[1642700709354,0.08751397,3235.8,3235.7,2.9732876]
[1642700709555,0.17389109,3235.8,3235.7,2.9732876]
[1642700710656,0.17389109,3235.8,3235.7,2.95400502]
[1642700712400,0.17389109,3235.8,3235.7,2.95617088]
[1642700712602,0.17389109,3235.8,3235.7,2.95400502]
[1642700713202,0.17389109,3235.8,3235.6,0.00216586]
[1642700713406,2.62628312,3235.7,3235.4,0.00216586]
[1642700714606,0.08637712,3235.6,3235.4,0.00216586]
[1642700715008,0.08637712,3235.6,3235.5,6.26238675]
[1642700715009,7.712e-05,3235.6,3235.5,6.26238675]
[1642700715310,7.712e-05,3235.6,3235.5,0.36238675]
[1642700715505,7.712e-05,3235.6,3235.5,1.06238675]
[1642700715705,7.712e-05,3235.6,3235.5,1.36238675]
[1642700715906,7.712e-05,3235.6,3235.5,0.06238675]
[1642700716170,7.712e-05,3235.6,3235.5,0.77261]
[1642700716362,7.712e-05,3235.6,3235.5,1.07477589]
[1642700716560,7.712e-05,3235.6,3235.5,4.07261]
[1642700717064,7.712e-05,3235.6,3235.5,4.77261]
[1642700717667,7.712e-05,3235.6,3235.5,0.77261]
[1642700718267,7.712e-05,3235.6,3235.5,3.18686118]
[1642700718667,7.712e-05,3235.6,3235.5,6.93686118]
[1642700719069,7.712e-05,3235.6,3235.5,7.93686118]
[1642700719269,7.712e-05,3235.6,3235.5,3.18686118]
[1642700719569,0.00113685,3235.8,3235.5,6.78686118]
[1642700719770,0.00113685,3235.8,3235.7,4.94748371]
[1642700720003,0.08751397,3235.8,3235.7,4.94748371]
[1642700720202,0.08751397,3235.8,3235.7,7.34396294]
[1642700720407,0.08751397,3235.8,3235.7,8.34396294]
[1642700721307,0.08751397,3235.8,3235.7,5.9496496]
[1642700723850,0.51844062,3236.1,3235.7,5.9496496]
[1642700724049,0.51844062,3236.1,3235.8,1.77470589]
[1642700724250,0.00113684,3236.0,3235.9,1.39549307]
[1642700725751,0.00113684,3236.0,3235.9,3.74255038]
[1642700725950,0.00113684,3236.0,3235.9,1.39549307]
[1642700726151,0.00113684,3236.0,3235.9,2.39549307]
[1642700727605,0.00113684,3236.0,3235.9,1.39549307]
[1642700727805,0.00113684,3236.0,3235.9,4.72733396]
[1642700728007,0.00113684,3236.0,3235.9,4.02733396]
[1642700728209,0.00113684,3236.0,3235.9,2.69549307]
[1642700728406,0.00113684,3236.0,3235.9,1.39549307]
[1642700731253,0.00113684,3236.0,3235.9,1.69549307]
[1642700731448,0.00113684,3236.0,3235.9,5.09549307]
[1642700731649,0.00113684,3236.0,3235.9,6.09549307]
[1642700732250,0.00113684,3236.0,3235.9,2.69549307]
[1642700732455,0.00113684,3236.0,3235.9,1.39549307]
[1642700732855,2.62733184,3236.0,3235.9,1.39549307]
[1642700733656,0.00113684,3236.0,3235.9,1.39549307]
[1642700734556,2.62729567,3236.0,3235.9,1.39549307]
[1642700734757,0.00113684,3236.0,3235.9,1.39549307]
[1642700735408,0.00113684,3236.0,3235.9,4.69549307]
[1642700735607,0.00113684,3236.0,3235.9,1.39549307]
[1642700737610,2.62719777,3236.0,3235.9,1.39549307]
[1642700738411,0.00113684,3236.0,3235.9,1.39549307]
[1642700738854,2.62721368,3236.0,3235.9,1.39549307]
[1642700745328,2.62721368,3236.0,3235.8,0.77253]
[1642700746768,2.62721368,3236.0,3235.9,1.36865927]
[1642700748972,2.62624733,3236.0,3235.9,1.36865927]
[1642700754261,2.62607684,3236.0,3235.9,1.36865927]
[1642700756751,2.62607684,3236.0,3235.9,1.36865927]
[1642700763946,2.62607684,3236.0,3235.7,0.00216589]
[1642700764147,2.62607684,3236.0,3235.5,0.00216589]
[1642700764346,4.83611019,3236.0,3235.8,0.00096635]
[1642700764549,2.62607684,3235.9,3235.8,0.00096635]
[1642700765400,2.62607684,3236.0,3235.8,0.00096635]
[1642700765596,2.62607684,3235.9,3235.7,0.00370067]
[1642700765796,2.62607684,3235.8,3235.7,0.00370067]
[1642700766004,2.62607684,3235.8,3235.4,0.123687]
[1642700766005,1.0614,3235.8,3235.4,0.123687]
[1642700766300,5.42886031,3235.7,3235.5,0.00330276]
[1642700766498,3.91650763,3235.7,3235.3,2.27823469]
[1642700766703,1.52886031,3235.6,3235.3,2.27823469]
[1642700766899,2.62607684,3235.6,3235.3,3.63946804]
[1642700767100,2.62607684,3235.5,3235.3,3.63946804]
[1642700767297,3.91650763,3235.8,3235.3,3.63946804]
[1642700767298,2.62607684,3235.4,3235.3,3.63946804]
[1642700767698,0.00113684,3235.7,3235.3,3.64060489]
[1642700768399,2.62721368,3235.7,3235.3,3.64060489]
[1642700768661,2.62607684,3235.6,3235.3,3.64060489]
[1642700768861,2.62607684,3235.5,3235.3,3.64060489]
[1642700769064,0.00113684,3235.7,3235.3,3.64060489]
[1642700769065,2.62607684,3235.4,3235.3,3.64060489]
[1642700769261,0.00113684,3235.7,3235.3,3.64060489]
[1642700769465,2.62721368,3235.7,3235.3,3.64060489]
[1642700769668,3.94661611,3235.6,3235.3,2.22937154]
[1642700769865,2.62607684,3235.5,3235.3,2.22937154]
[1642700770266,2.62607684,3235.4,3235.3,2.22937154]
[1642700770466,0.01264345,3235.4,3235.3,2.22937154]
[1642700770669,2.62607684,3235.6,3235.3,2.17937154]
[1642700770867,2.62607684,3235.5,3235.3,2.17937154]
[1642700771066,2.62607684,3235.5,3235.4,1.4239864]
[1642700771271,0.00113684,3235.7,3235.5,1.50574738]
[1642700775920,0.00113684,3235.7,3235.3,2.17937154]
[1642700777152,0.00113684,3235.7,3235.3,3.4495581]
[1642700778352,0.00113684,3235.7,3235.4,0.00216595]
[1642700780106,6.35406,3235.5,3235.4,0.00216595]
[1642700780300,8.731593,3235.5,3235.3,2.17937154]